[Event "93rd German Championship 2022"]
[Site "Magdeburg"]
[Date "2022.08.18"]
[Round "6.5"]
[White "Westphal, Wolfgang"]
[Black "Becker, Michael"]
[Result "1-0"]
[ECO "B52"]
[WhiteElo "2175"]
[BlackElo "2270"]
[Annotator "TA"]
[PlyCount "131"]
[EventDate "2022.08.14"]
[EventType "swiss"]
[EventCountry "GER"]
[SourceTitle "playchess.com"]
[Source "ChessBase"]
[SourceQuality "1"]
[TimeControl "40/5400+30:1800+30"]

{[%evp 14,131,12,1,0,5,15,0,316,325,331,335,304,342,307,324,373,338,352,291,296,270,361,359,375,364,504,499,619,566,876,880,875,878,854,838,1105,939,903,864,829,758,941,404,375,184,189,195,196,179,354,141,135,134,122,83,91,14,29,13,11,8,8,8,8,8,45,12,478,478,491,448,633,633,633,632,898,786,10168,1178,1149,1168,1145,1003,1132,1084,1097,1003,1158,967,643,502,558,364,1755,745,303,303,11203,11196,11067,10647,10615,8625,29973,29974,29974,29971,29976,29977,29976,29977,29982,29978,29984,29985,29987,29983,29983,29983]} 1. Nf3 {[%emt 0:00:04]} c5 {[%emt 0:00:15]} 2. e4 {[%emt 0:00:25]} d6 {[%emt 0:00:20]} 3. Bb5+ {[%emt 0:00:19]} Bd7 {[%emt 0:00:08]} 4. Bxd7+ {[%emt 0:00:05]} Qxd7 {[%emt 0:00:14]} 5. O-O {[%emt 0:00:17]} Nf6 {[%emt 0:00:06]} 6. e5 {[%emt 0:00:44]} dxe5 {[%emt 0:00:46]} 7. Nxe5 {[%emt 0:00:05][%cal Bf3e5,Be5c4,Bc4d6][%mdl 32]} Qc7 {[%emt 0:00:18]} 8. d4 {[%emt 0:00:31]} cxd4 {[%emt 0:00:26] B52: Sicilian: Moscow Variation with 3...Bd7.} 9. Bf4 {[%emt 0:00:49][%cal Oe5g6]} Nc6 {[%emt 0:01:59]} 10. Re1 {[%emt 0:02:01][%cal Oe5g6] [#] Strongly threatening Ng6!} (10. Ng6 e5 11. Bxe5 (11. Nxh8 exf4 12. Qe2+ Qe5 $15) 11... Nxe5 $1 $15) 10... Qb6 $146 {[%emt 0:03:09][%mdl 8192]} (10... Qa5 $11 {and Black is okay.}) ({Predecessor:} 10... Qd8 11. Na3 e6 12. Nb5 Rc8 13. Nc4 Qd5 14. Ncd6+ Bxd6 15. Nxd6+ Ke7 16. c4 dxc3 17. Nxc8+ Rxc8 18. bxc3 {0-1 (32) Hall,J (2524)-Popov,V (2598) Sweden 2001}) 11. Nc4 $18 {[%emt 0:04:27]} Qc5 {[%emt 0:09:38]} 12. Nd6+ {[%emt 0:00:18][%mdl 64] Deflection, Double Attack} Kd7 {[%emt 0:00:09]} 13. Nxf7 {[%emt 0:00:11]} Rg8 {[%emt 0:00:50]} 14. c3 {[%emt 0:02:14]} (14. Qe2 $6 e5 $18) (14. Qf3 Qd5 $18) 14... Qf5 {[%emt 0:11:53]} 15. Ne5+ {[%emt 0:01:08]} ({And not} 15. Qb3 Qxf4 16. g3 (16. Qxb7+ Qc7 $11) 16... Qc7 17. Qe6+ Ke8 18. Nd6+ Kd8 19. Nf7+ Ke8 20. Nd6+ Kd8 21. Nf7+ Ke8 $11) 15... Ke8 {[%emt 0:01:03]} 16. Nxc6 {[%emt 0:01:51]} bxc6 {[%emt 0:00:33]} 17. Qxd4 {[%emt 0:00:17]} Nd5 {[%emt 0:05:39]} 18. Bg3 {[%emt 0:00:38]} g6 {[%emt 0:02:08]} 19. Nd2 {[%emt 0:01:57]} Bg7 {[%emt 0:01:18]} 20. Qc5 {[%emt 0:01:06]} Qd7 {[%emt 0:02:39]} 21. c4 {[%emt 0:01:31]} Nb6 {[%emt 0:02:59] [#]} 22. Bh4 $1 {[%emt 0:02:02][%cal Re1e7]} Nc8 {[%emt 0:01:06]} 23. Nf3 {[%emt 0:01:11]} Rf8 {[%emt 0:03:52]} 24. Rad1 {[%emt 0:02:08]} Rf5 {[%emt 0:05:39]} 25. Qa3 {[%emt 0:01:43]} Qb7 {[%emt 0:01:05]} 26. Re2 {[%emt 0:07:38]} a5 {[%emt 0:02:18]} 27. Qd3 {[%emt 0:03:27]} Kf7 {[%emt 0:07:34]} 28. Rde1 {[%emt 0:03:51]} (28. g4 $142 Rf4 29. Qe3 Rxg4+ 30. Bg3) 28... Kg8 {[%emt 0:08:58]} 29. Bxe7 {[%emt 0:01:52]} (29. Ng5 $142) 29... Nxe7 {[%emt 0:00:38]} 30. Rxe7 {[%emt 0:00:11]} Qxb2 {[%emt 0:00:18]} 31. Qd7 {[%emt 0:06:27]} c5 $2 {[%emt 0:02:10] [#]} (31... Raf8 32. R7e2 Qb6) 32. Re8+ $2 {[%emt 0:00:37]} (32. g4 $1 $18 Rff8 33. R1e2 Qa1+ 34. Kg2) 32... Rxe8 $16 {[%emt 0:01:12]} 33. Rxe8+ {[%emt 0:00:23]} ({Don't play} 33. Qxe8+ Rf8 34. Qe6+ Kh8 $14) 33... Bf8 {[%emt 0:01:29]} 34. Qe6+ {[%emt 0:00:33]} Kg7 {[%emt 0:00:38]} 35. h4 {[%emt 0:13:53] Dancing on a razor blade.} ({Reject} 35. Kh1 Qxf2 36. h3 Qxa2 $15) (35. Qe2 $1 $16 {[%cal Re2b2]} Qxe2 36. Rxe2) 35... Qxa2 {[%emt 0:00:59]} 36. Qe1 {[%emt 0:02:33] Black must now prevent Ng5.} Qxc4 {[%emt 0:04:26]} 37. Qa1+ {[%emt 0:00:14]} Kh6 {[%emt 0:03:04]} 38. Qxa5 {[%emt 0:01:10]} Qc1+ {[%emt 0:01:33]} 39. Re1 {[%emt 0:00:14]} Qf4 {[%emt 0:00:31]} 40. Qa7 {[%emt 0:06:22]} c4 $2 {[%emt 0:01:49][%mdl 8192] [#] This costs Black the game.} (40... Rf7 $11 {and Black has nothing to worry.} 41. Qa2 Rd7) 41. Ng5 $1 $18 {[%emt 0:36:01][%csl Gg5][%cal Ra7h7]} Qxh4 {[%emt 0:33:21] [#]} 42. Nf7+ {[%emt 0:04:57]} Kh5 {[%emt 0:02:42]} (42... Rxf7 $142 43. Qxf7 Bd6) 43. Ne5 {[%emt 0:05:04]} Kh6 {[%emt 0:01:09]} 44. g3 {[%emt 0:00:32]} Qh3 {[%emt 0:02:06]} 45. Re4 {[%emt 0:00:37] aiming for Nf7+.} Qh5 {[%emt 0:00:00]} 46. Nf7+ {[%emt 0:00:00]} (46. Ng4+ $142 Qxg4 47. Rxg4) 46... Kg7 {[%emt 0:00:00]} 47. Nd6+ {[%emt 0:00:00]} Kg8 {[%emt 0:00:00]} 48. Nxf5 {[%emt 0:00:00] Active counter play!} Qxf5 {[%emt 0:00:00]} 49. Rxc4 {[%emt 0:00:00][%mdl 4096] Endgame KQR-KQB} Qd5 {[%emt 0:00:00]} 50. Qd4 {[%emt 0:00:00]} Qxd4 {[%emt 0:00:00]} 51. Rxd4 {[%emt 0:00:00] KR-KB} Kf7 {[%emt 0:00:00]} 52. Rd7+ {[%emt 0:00:00]} Be7 {[%emt 0:00:00]} 53. Kg2 {[%emt 0:00:00] Hoping for g4.} h6 $2 {[%emt 0:00:00]} (53... Ke6 54. Rb7 h5) 54. Kf3 {[%emt 0:00:00]} (54. Rc7 $142 Kf6 55. Kf3) 54... Ke6 {[%emt 0:00:00]} 55. Ra7 {[%emt 0:00:00]} Bc5 $2 {[%emt 0:00:00]} (55... h5 56. Ra4 Kf6) 56. Ra6+ {[%emt 0:00:00]} Kf7 {[%emt 0:00:00]} 57. g4 {[%emt 0:00:00]} Be7 {[%emt 0:00:00]} 58. Ke4 {[%emt 0:00:00]} h5 {[%emt 0:00:00]} 59. gxh5 {[%emt 0:00:00] White mates.} gxh5 {[%emt 0:00:00]} 60. Rh6 {[%emt 0:00:00]} Ba3 {[%emt 0:00:00]} 61. Rxh5 {[%emt 0:00:00]} Bb2 {[%emt 0:00:00]} 62. Kf5 {[%emt 0:00:00]} Bd4 {[%emt 0:00:00]} 63. f3 {[%emt 0:00:00][%cal Bf2f3,Bf3f4][%mdl 32]} Bc3 {[%emt 0:00:00]} 64. Rh7+ {[%emt 0:00:00]} Kf8 {[%emt 0:00:00]} 65. Kg6 {[%emt 0:00:00]} Bd4 {[%emt 0:00:00]} 66. f4 {Weighted Error Value: White=0.38/Black=0.69} 1-0

[Event "93rd German Championship 2022"]
[Site "Magdeburg"]
[Date "2022.08.18"]
[Round "6.6"]
[White "Braun, Georg"]
[Black "Richter, Nils"]
[Result "1/2-1/2"]
[ECO "B12"]
[WhiteElo "2398"]
[BlackElo "2359"]
[Annotator "TA"]
[PlyCount "112"]
[EventDate "2022.08.14"]
[EventType "swiss"]
[EventCountry "GER"]
[SourceTitle "playchess.com"]
[Source "ChessBase"]
[SourceQuality "1"]
[TimeControl "40/5400+30:1800+30"]

{[%evp 9,112,13,19,12,23,42,21,14,38,25,40,48,48,43,55,33,68,27,65,79,96,93,92,90,124,124,121,116,114,114,114,114,116,116,126,79,85,68,93,54,42,51,39,37,33,33,43,26,121,8,12,11,53,48,48,48,48,48,49,48,48,48,48,27,48,8,8,0,0,0,0,0,0,0,0,0,0,0,0,0,0,0,0,0,0,0,0,0,0,0,0,0,0,0,0,0,0,0,0,0,0,0,0,0,0]} 1. e4 {[%emt 0:00:09]} c6 {[%emt 0:00:07]} 2. d4 {[%emt 0:00:18]} d5 {[%emt 0:00:12]} 3. e5 {[%emt 0:00:12]} c5 {[%emt 0:00:27]} 4. dxc5 {[%emt 0:00:10]} e6 {[%emt 0:00:09]} 5. Nf3 {[%emt 0:00:19]} Bxc5 {[%emt 0:01:18]} 6. Bd3 {[%emt 0:00:10] B12: Caro-Kann: Advance Variation.} f6 {[%emt 0:02:22] 6...Ne7 gains popularity.} 7. O-O {[%emt 0:02:06]} Nc6 {[%emt 0:01:06]} 8. Qe2 {[%emt 0:00:41]} fxe5 {[%emt 0:01:37]} 9. Nxe5 {[%emt 0:02:10]} Nf6 {[%emt 0:00:25] Inhibits Qh5+.} 10. Bf4 {[%emt 0:06:34]} Bd6 {[%emt 0:11:43]} 11. Nd2 {[%emt 0:07:51]} O-O {[%emt 0:04:22]} 12. Bg3 {[%emt 0:16:22] [#]} Qc7 $146 {[%emt 0:10:50][%cal Rc6e5]} ({Predecessor:} 12... Nb4 13. Rfe1 Qe7 14. a3 Nxd3 15. cxd3 Bd7 16. Nxd7 Qxd7 17. Qxe6+ Qxe6 18. Rxe6 Bxg3 19. hxg3 {½-½ (28) Degraeve,J (2525)-Fressinet,L (2450) Montpellier 1998}) 13. Rfe1 {[%emt 0:04:29]} Nxe5 {[%emt 0:19:09]} 14. Bxe5 {[%emt 0:00:47]} Bxe5 {[%emt 0:00:20]} 15. Qxe5 {[%emt 0:00:07]} Qxe5 {[%emt 0:00:04]} 16. Rxe5 {[%emt 0:00:06]} Ne8 {[%emt 0:00:31]} 17. Nf3 {[%emt 0:04:01]} Nc7 {[%emt 0:04:23]} 18. Nd4 {[%emt 0:08:14]} Bd7 {[%emt 0:00:12]} 19. g3 {[%emt 0:00:39]} b5 {[%emt 0:06:34]} 20. a3 {[%emt 0:05:58]} a5 {[%emt 0:00:38]} 21. f4 {[%emt 0:04:57]} h6 {[%emt 0:03:08]} 22. Kf2 {[%emt 0:04:32]} (22. Rc1 $142) 22... Kf7 $16 {[%emt 0:00:02]} 23. Rae1 {[%emt 0:03:55]} Ke7 {[%emt 0:04:28]} 24. Ke3 {[%emt 0:06:05] 0x0.001b84b59885dp-1022s more active pieces.} Kd6 {[%emt 0:00:44]} 25. Kd2 {[%emt 0:00:33]} b4 {[%emt 0:01:44]} 26. axb4 {[%emt 0:00:14]} axb4 {[%emt 0:00:12]} 27. h4 {[%emt 0:00:14]} Ra2 {[%emt 0:01:13]} 28. f5 {[%emt 0:03:17][%cal Rf5e6]} exf5 {[%emt 0:01:37]} (28... Ra1 $11 {keeps the balance.}) 29. Bxf5 {[%emt 0:00:17]} (29. Re7 $16) 29... Bxf5 $11 {[%emt 0:02:12]} 30. Rxf5 {[%emt 0:03:08]} Raa8 {[%emt 0:12:11]} (30... Re8 $5 {[%cal Re8e1]}) 31. Ref1 {[%emt 0:01:01]} Ne6 {[%emt 0:02:06]} 32. Rxf8 {[%emt 0:03:30]} Rxf8 {[%emt 0:00:41]} 33. Rxf8 {[%emt 0:00:19]} Nxf8 $14 {[%emt 0:00:03][%mdl 4096] Endgame KN-KN} 34. Nf5+ {[%emt 0:00:20]} Ke5 {[%emt 0:00:10]} 35. Nxg7 {[%emt 0:00:14]} Nd7 {[%emt 0:02:35]} 36. Nh5 {[%emt 0:05:19] Hoping for Ke3.} Nc5 {[%emt 0:01:27]} 37. g4 {[%emt 0:01:09][%cal Bg3g4,Bg4g5,Bg5h6][%mdl 32]} d4 {[%emt 0:02:41] The position is equal.} 38. Ng3 {[%emt 0:02:04]} Kf4 {[%emt 0:00:46][%csl LRg3,LRg4]} 39. g5 {[%emt 0:00:20][%cal Og5h6]} Kxg3 {[%emt 0:03:22]} 40. gxh6 $11 {[%emt 0:00:09] KN-KP} Ne4+ {[%emt 0:00:20]} 41. Kd3 {[%emt 0:30:09]} Nf6 {[%emt 0:30:26]} 42. Kxd4 {[%emt 0:01:04]} Kxh4 {[%emt 0:00:32] KN-K3P} 43. Kc5 {[%emt 0:01:19]} Kg5 {[%emt 0:00:54]} 44. Kxb4 {[%emt 0:00:32]} Kxh6 {[%emt 0:00:12] KN-KPP} 45. Kb5 {[%emt 0:03:02]} Kg6 {[%emt 0:00:00]} 46. Kc6 {[%emt 0:00:00]} Kf5 {[%emt 0:00:00]} 47. b4 {[%emt 0:00:00]} Ke5 {[%emt 0:00:00]} 48. b5 {[%emt 0:00:00]} Nd5 {[%emt 0:00:00]} 49. c3 {[%emt 0:00:00] [#] b6 would kill now.} Ke4 {[%emt 0:00:00]} 50. Kd6 {[%emt 0:00:00]} Nb6 $1 {[%emt 0:00:00]} 51. Kc5 {[%emt 0:00:00]} Na4+ {[%emt 0:00:00]} 52. Kb4 {[%emt 0:00:00]} Nb6 {[%emt 0:00:00]} 53. Kc5 {[%emt 0:00:00]} Na4+ {[%emt 0:00:00]} 54. Kc6 {[%emt 0:00:00]} (54. Kb4 $5 {[%cal Rb4a4]} Nb6 55. Kc5 $11) 54... Kd3 {[%emt 0:00:00]} 55. b6 {[%emt 0:00:03]} Nxb6 {[%emt 0:00:00]} 56. Kxb6 {[%emt 0:00:05]} Kxc3 {[%emt 0:00:00] Weighted Error Value: White=0.11 (very precise) /Black=0.10 (very precise)} 1/2-1/2

[Event "93rd German Championship 2022"]
[Site "Magdeburg"]
[Date "2022.08.18"]
[Round "6.7"]
[White "Schulz, Lukas"]
[Black "Roseneck, Jonas"]
[Result "0-1"]
[ECO "C34"]
[WhiteElo "2272"]
[BlackElo "2384"]
[Annotator "TA"]
[PlyCount "64"]
[EventDate "2022.08.14"]
[EventType "swiss"]
[EventCountry "GER"]
[SourceTitle "playchess.com"]
[Source "ChessBase"]
[SourceQuality "1"]
[TimeControl "40/5400+30:1800+30"]

{[%evp 9,64,-46,-60,-61,-52,-54,-55,-42,-40,-47,-55,-66,-57,-70,-54,-118,-117,-106,-69,-157,-117,-123,-40,-53,-55,-41,-59,-66,-68,-192,-172,-504,-507,-641,-641,-639,-625,-639,-631,-553,-656,-652,-493,-658,-634,-660,-664,-658,-660,-662,-656,-649,-642,-689,-662,-1089,-1023]} 1. e4 {[%emt 0:00:03]} e5 {[%emt 0:00:01]} 2. f4 {[%emt 0:00:15]} exf4 {[%emt 0:00:02]} 3. Nf3 {[%emt 0:00:08]} Nf6 {[%emt 0:00:04]} 4. e5 {[%emt 0:01:01]} Nh5 {[%emt 0:00:27]} 5. Qe2 {[%emt 0:00:16]} Be7 {[%emt 0:00:25]} 6. d4 {[%emt 0:00:28] C34: King's Gambit Accepted: 3 Nf3: 3...Nf6 and 3...d6.} O-O {[%emt 0:00:50] Threatens to win with ...d6.} 7. Nc3 {[%emt 0:00:17] is cutting edge theory.} d6 {[%emt 0:00:22] Hoping for ...Bg4.} 8. Bd2 {[%emt 0:01:22] Black is slightly better.} Bg4 {[%emt 0:00:32]} 9. O-O-O {[%emt 0:00:38][%cal Og2g3]} Nd7 {[%emt 0:00:06]} 10. Ne4 {[%emt 0:02:56]} g6 {[%emt 0:01:03]} 11. Nf2 {[%emt 0:20:56]} Be6 {[%emt 0:02:56] [#]} 12. Nd3 $146 {[%emt 0:06:32]} (12. Kb1 $1 $15) ({Predecessor:} 12. Kb1 c6 13. Qe1 a5 14. Nd3 a4 15. Nxf4 Nxf4 16. Bxf4 dxe5 17. dxe5 Qb6 18. Nd4 {½-½ (55) Kahl,F (2396)-Pascual Perez,N (2459) LSS email 2020}) 12... dxe5 {[%emt 0:13:52]} 13. dxe5 {[%emt 0:01:12]} c6 {[%emt 0:04:27]} 14. g3 {[%emt 0:24:30]} (14. a3 $15) 14... fxg3 $17 {[%emt 0:07:08]} 15. Qg2 {[%emt 0:03:00]} Nb6 {[%emt 0:21:37]} ({Black should try} 15... f6 $17 {And now ...fxe5 would win.} 16. exf6 Ndxf6) 16. hxg3 $15 {[%emt 0:01:50] aiming for g4.} Qd5 {[%emt 0:00:06]} (16... Bxa2 17. g4 Ng7 18. Qh2 $18) 17. b3 $1 {[%emt 0:08:05]} Bg4 {[%emt 0:02:26]} 18. Be2 {[%emt 0:00:48]} a5 {[%emt 0:04:16][%cal Ba7a5,Ba5a4][%mdl 32]} 19. Bc3 {[%emt 0:02:52] This costs White the game.} ({Better is} 19. Be3 $1 $15 Na4 20. bxa4 Qxa2 21. Kd2 Qxa4 22. c3) 19... a4 $40 {[%emt 0:05:48][%mdl 128] ...axb3 is the strong threat. Black has strong attack.} 20. Nf2 $2 {[%emt 0:02:08]} (20. Qf2 {is a better chance.}) 20... Qc5 {[%emt 0:03:50] Black is clearly winning.} 21. Bb2 {[%emt 0:04:28] [#]} axb3 $1 {[%emt 0:06:49]} 22. axb3 {[%emt 0:00:28]} Qe3+ {[%emt 0:02:00]} 23. Kb1 {[%emt 0:00:17]} Qxe2 {[%emt 0:01:56]} 24. Nd4 {[%emt 0:00:17] [#]} Qa6 {[%emt 0:01:17]} 25. Nxg4 {[%emt 0:00:05]} Qa2+ {[%emt 0:00:29]} 26. Kc1 {[%emt 0:00:04]} Ba3 {[%emt 0:00:04]} 27. Bxa3 {[%emt 0:02:33]} Qa1+ {[%emt 0:00:05]} (27... Rxa3 28. Kd2 Nd5 29. Qf3 $15) 28. Kd2 {[%emt 0:00:57]} Qxd4+ {[%emt 0:00:02]} ({Weaker is} 28... Qxa3 29. Rxh5 Qa5+ 30. Kd3 $16 (30. b4 Qxb4+ 31. Ke2 f5 $11)) 29. Ke1 {[%emt 0:00:05]} Qxg4 {[%emt 0:02:40]} 30. Bxf8 {[%emt 0:00:06]} Rxf8 {[%emt 0:00:03]} 31. Rh4 {[%emt 0:00:36]} Qg5 {[%emt 0:00:32] Strongly threatening ...Re8.} 32. Re4 {[%emt 0:01:09]} Nxg3 {[%emt 0:01:57] Weighted Error Value: White=0.55/Black=0.05 (flawless)} 0-1

[Event "93rd German Championship 2022"]
[Site "Magdeburg"]
[Date "2022.08.18"]
[Round "6.8"]
[White "Carlstedt, Jonathan"]
[Black "Colpe, Malte"]
[Result "1-0"]
[ECO "D41"]
[WhiteElo "2446"]
[BlackElo "2369"]
[Annotator "TA"]
[PlyCount "71"]
[EventDate "2022.08.14"]
[EventType "swiss"]
[EventCountry "GER"]
[SourceTitle "playchess.com"]
[Source "ChessBase"]
[SourceQuality "1"]
[TimeControl "40/5400+30:1800+30"]

{[%evp 19,71,18,18,0,0,0,0,0,11,10,13,0,10,0,0,-7,0,-9,-12,-23,-28,-41,-25,-25,-24,-29,0,-32,-31,-36,-23,-69,-37,-103,-74,-107,-48,-45,31,24,106,115,777,774,752,745,742,735,29988,29989,29989,29990,29983,2849]} 1. c4 {[%emt 0:00:06]} e6 {[%emt 0:00:22]} 2. Nc3 {[%emt 0:00:24]} d5 {[%emt 0:02:24]} 3. d4 {[%emt 0:00:05]} Nf6 {[%emt 0:05:05]} 4. Nf3 {[%emt 0:00:10]} c5 {[%emt 0:02:07]} 5. cxd5 {[%emt 0:00:07]} Nxd5 {[%emt 0:00:07]} 6. e4 {[%emt 0:00:09]} Nxc3 {[%emt 0:00:06]} 7. bxc3 {[%emt 0:00:02]} cxd4 {[%emt 0:00:10]} 8. cxd4 {[%emt 0:00:04]} Bb4+ {[%emt 0:01:08]} 9. Bd2 {[%emt 0:00:05]} Bxd2+ {[%emt 0:00:06]} 10. Qxd2 {[%emt 0:00:05]} O-O {[%emt 0:00:08]} 11. h4 {[%emt 0:00:03] D41: Queen's Gambit Declined: Semi-Tarrasch with 5 cxd5.} b6 {[%emt 0:05:49]} 12. Rd1 {[%emt 0:00:06]} Bb7 {[%emt 0:03:15]} 13. Bd3 {[%emt 0:00:16] The position is equal.} Nd7 {[%emt 0:01:31]} 14. O-O {[%emt 0:00:08]} Rc8 {[%emt 0:03:16]} 15. Rfe1 {[%emt 0:00:20]} Re8 {[%emt 0:03:33]} 16. Bb1 {[%emt 0:10:12] [#]} Nf8 $146 {[%emt 0:16:37]} ({Predecessor:} 16... Qc7 17. Qe3 Nf6 18. Rc1 Qe7 19. Rxc8 Rxc8 20. Qd2 Nd7 21. Qb2 h6 22. Qb3 Nf6 {½-½ (31) Bu,X (2708)-Ma,Q (2645) Hangzhou 2022}) 17. h5 {[%emt 0:02:56]} h6 {[%emt 0:02:36]} 18. Qf4 {[%emt 0:00:44]} Qc7 {[%emt 0:06:22]} 19. Qg4 {[%emt 0:01:26]} Nh7 {[%emt 0:04:51]} 20. Re3 {[%emt 0:10:23]} Nf6 {[%emt 0:09:27]} 21. Qh4 {[%emt 0:00:53]} Rcd8 {[%emt 0:05:01][%cal Oe6e5]} 22. Ree1 {[%emt 0:08:57]} Rc8 {[%emt 0:02:09]} 23. Ne5 {[%emt 0:02:33]} Red8 {[%emt 0:04:15]} 24. Nf3 {[%emt 0:01:45]} Qc4 {[%emt 0:04:39]} 25. Bd3 {[%emt 0:03:05]} (25. g4 $11) 25... Qb4 {[%emt 0:10:25]} 26. a3 {[%emt 0:18:27]} (26. Re3 $15) 26... Qa4 {[%emt 0:03:49]} 27. Bb1 {[%emt 0:01:27][%cal Od4d5]} Rd7 {[%emt 0:02:25]} (27... Qxa3 $17 28. d5 b5) 28. d5 $15 {[%emt 0:04:46]} exd5 {[%emt 0:00:41]} (28... Qxa3 $15 29. Qg3 Qb3) 29. e5 $14 {[%emt 0:06:05][%csl LRa4,LRf6]} Ne4 {[%emt 0:01:03] [#]} (29... Qxh4 $1 $11 {remains equal.} 30. Nxh4 Nxh5) 30. Qg4 $1 $16 {[%emt 0:09:34] Black must now prevent Bxe4.} Rcd8 $2 {[%emt 0:00:52][%mdl 8192] A mistake that costs the game.} (30... Rdc7 $16) 31. e6 $18 {[%emt 0:00:34]} fxe6 {[%emt 0:00:21]} 32. Qxe6+ {[%emt 0:00:02]} ({Worse is} 32. Bxe4 dxe4 33. Qxe6+ Kh7 34. Qg6+ (34. Rxd7 Qxd7 35. Qg6+ Kg8 $17) 34... Kg8 35. Qe6+ Kh7 36. Qg6+ (36. Rxd7 Qxd7 37. Qg6+ Kg8 $17) 36... Kg8 37. Qe6+ $11) 32... Kh8 {[%emt 0:00:41]} 33. Ne5 {[%emt 0:00:58] And now Bxe4 would win.} Rd6 {[%emt 0:01:05]} 34. Nf7+ {[%emt 0:00:14] White mates.} Kh7 {[%emt 0:00:15]} 35. Nxd6 {[%emt 0:00:27]} Rxd6 {[%emt 0:00:13]} 36. Qxd6 {[%emt 0:00:27] Weighted Error Value: White=0.10 (very precise) /Black=0.49} (36. Bxe4+ $142 Qxe4 37. Qxd6 Qg4 38. Qc7 Bc8 39. Rxd5 Bf5 40. Re3 Be4 41. f3) 1-0

[Event "93rd German Championship 2022"]
[Site "Magdeburg"]
[Date "2022.08.18"]
[Round "6.9"]
[White "Langheinrich, Ferenc"]
[Black "Gungl, Theo"]
[Result "1/2-1/2"]
[ECO "A11"]
[WhiteElo "2357"]
[BlackElo "2359"]
[Annotator "TA"]
[PlyCount "80"]
[EventDate "2022.08.14"]
[EventType "swiss"]
[EventCountry "GER"]
[SourceTitle "playchess.com"]
[Source "ChessBase"]
[SourceQuality "1"]
[TimeControl "40/5400+30:1800+30"]

{[%evp 9,80,-23,-8,6,43,28,33,10,0,0,10,0,11,6,2,7,37,25,32,41,32,45,32,20,36,0,38,0,22,4,11,0,0,-27,-9,0,-12,-131,-116,-134,-131,-137,-143,-195,-222,-260,-172,-215,-218,-229,-107,-88,-72,-58,-74,-79,-22,-42,-20,-45,-43,-34,-35,-38,-38,-36,-25,-38,0,0,0,-16,0]} 1. c4 {[%emt 0:00:52]} c6 {[%emt 0:00:29]} 2. Qa4 {[%emt 0:00:07]} Nf6 {[%emt 0:02:03]} 3. Nf3 {[%emt 0:01:33]} e6 {[%emt 0:02:01]} 4. d4 {[%emt 0:00:26]} d5 {[%emt 0:01:15]} 5. g3 {[%emt 0:00:32]} Nbd7 {[%emt 0:04:18]} 6. Nbd2 {[%emt 0:00:06] A11: English Opening: 1...c6.} dxc4 {[%emt 0:12:03]} 7. Qxc4 {[%emt 0:00:09]} c5 {[%emt 0:00:11]} 8. dxc5 {[%emt 0:13:14] White is slightly better.} Bxc5 {[%emt 0:01:18] [#]} 9. Nb3 $146 {[%emt 0:02:03]} ({Predecessor:} 9. Bg2 O-O 10. O-O Be7 11. Qc2 Nb6 12. Ne5 Nbd5 13. Qb3 a5 14. a4 Qd6 15. Ndc4 {1-0 (22) Esipenko,A (2571)-Vega Gutierrez,S (2427) Caleta 2018}) 9... Be7 {[%emt 0:06:18]} 10. Bg2 {[%emt 0:05:48]} Nb6 {[%emt 0:05:24]} 11. Qd4 {[%emt 0:03:03]} O-O {[%emt 0:05:22]} 12. O-O {[%emt 0:03:04]} Nbd5 {[%emt 0:02:52]} 13. a3 {[%emt 0:16:21]} Bd7 {[%emt 0:05:14]} 14. e4 {[%emt 0:01:36][%cal Be2e4,Be4e5][%mdl 32]} Nb6 {[%emt 0:00:07]} 15. e5 {[%emt 0:02:15]} Nfd5 {[%emt 0:01:09]} 16. Qg4 {[%emt 0:05:21] And now Bh6 would win.} Kh8 {[%emt 0:09:05]} 17. Qh5 {[%emt 0:13:45]} Qe8 {[%emt 0:10:38]} 18. Qg4 {[%emt 0:02:13]} Bb5 {[%emt 0:00:53]} 19. Re1 {[%emt 0:00:49]} Rc8 {[%emt 0:01:10]} 20. Nbd4 {[%emt 0:01:07]} Bd3 {[%emt 0:01:24] Against Qe4} 21. h4 {[%emt 0:00:08]} Rc4 {[%emt 0:02:09]} 22. b3 {[%emt 0:06:29]} Bf5 {[%emt 0:02:31]} 23. Qxf5 {[%emt 0:01:46]} exf5 $17 {[%emt 0:01:05]} 24. bxc4 {[%emt 0:00:03]} Nxc4 {[%emt 0:00:56]} 25. Nxf5 {[%emt 0:00:10]} Bc5 {[%emt 0:04:22]} 26. h5 {[%emt 0:03:50]} (26. Bg5 $17) 26... Qe6 {[%emt 0:01:58]} 27. N3d4 {[%emt 0:03:34] [#]} Qb6 {[%emt 0:05:10]} 28. Bxd5 {[%emt 0:00:32]} (28. h6 g6) 28... Bxd4 {[%emt 0:00:05]} 29. Ra2 {[%emt 0:00:05][%cal Ba1a2,Ba2c2,Bc2c4][%mdl 32]} Qc5 {[%emt 0:05:12]} ({Not} 29... Nxe5 30. h6 gxh6 31. Nxd4 Qxd4 32. Rd2 $17) (29... Qa5 $19 30. Rd1 Qxd5 31. Rxd4 Qe6) 30. Bxb7 {[%emt 0:04:40]} Bxe5 {[%emt 0:02:24] ...Bc3 is the strong threat.} 31. Rc2 {[%emt 0:03:13] Inhibits Bc3.} Qb5 {[%emt 0:01:18]} 32. Bg2 {[%emt 0:02:41]} Bf6 {[%emt 0:01:33]} ({Black should play} 32... h6 $17 33. Bf1 Qa5) 33. h6 $11 {[%emt 0:00:38]} Qxf5 {[%emt 0:01:24]} (33... Qa5 $5 {[%cal Ra5e1]} 34. hxg7+ Bxg7 $17) 34. hxg7+ {[%emt 0:00:08]} Kxg7 {[%emt 0:00:43]} 35. Rxc4 {[%emt 0:00:07]} Rc8 {[%emt 0:00:35]} 36. Rf4 {[%emt 0:01:57]} Qa5 {[%emt 0:00:21]} 37. Rg4+ {[%emt 0:01:31]} Kh8 {[%emt 0:00:14]} 38. Rge4 {[%emt 0:00:43]} Kg7 {[%emt 0:01:08][%cal Of6d4]} 39. Rg4+ {[%emt 0:00:07]} Kh8 {[%emt 0:00:04]} 40. Rge4 {[%emt 0:00:03]} Kg7 {White happily takes the draw.  Weighted Error Value: White=0.14 (very precise) /Black=0.20 (precise)} 1/2-1/2